[Event "Titled Tuesday Blitz February 15 Late 2022"]
[White "Koepke, Christian"]
[Black "Mladenovic, Stefan"]
[WhiteFideId "4655737"]
[BlackFideId "942227"]
[WhiteElo "2180"]
[BlackElo "2355"]
[Result "0-1"]
[Round "04"]
[TimeControl "180+1"]
[Date "2022.02.16"]
[WhiteClock "0:00:03"]
[BlackClock "0:00:05"]

1. e4 {[%clk 0:02:59]}  c5 {[%clk 0:02:58]} 2. f4 {[%clk 0:02:58]}  d5 {[%clk 0:02:56]} 3. Bb5+ {[%clk 0:02:58]}  Bd7 {[%clk 0:02:37]} 4. Bxd7+ {[%clk 0:02:57]}  Qxd7 {[%clk 0:02:35]} 5. d3 {[%clk 0:02:58]}  dxe4 {[%clk 0:02:30]} 6. dxe4 {[%clk 0:02:58]}  Qxd1+ {[%clk 0:02:29]} 7. Kxd1 {[%clk 0:02:59]}  Nc6 {[%clk 0:02:27]} 8. Nf3 {[%clk 0:03:00]}  O-O-O+ {[%clk 0:02:16]} 9. Nbd2 {[%clk 0:02:57]}  Nf6 {[%clk 0:02:11]} 10. Re1 {[%clk 0:02:57]}  h6 {[%clk 0:02:01]} 11. c3 {[%clk 0:02:51]}  Nd7 {[%clk 0:01:11]} 12. Kc2 {[%clk 0:02:46]}  Nb6 {[%clk 0:00:56]} 13. a4 {[%clk 0:02:41]}  e6 {[%clk 0:00:44]} 14. a5 {[%clk 0:02:39]}  Nd7 {[%clk 0:00:41]} 15. a6 {[%clk 0:02:37]}  b5 {[%clk 0:00:36]} 16. Nb3 {[%clk 0:02:33]}  Nb6 {[%clk 0:00:35]} 17. Be3 {[%clk 0:02:28]}  Na4 {[%clk 0:00:31]} 18. Nbd2 {[%clk 0:01:59]}  Be7 {[%clk 0:00:30]} 19. e5 {[%clk 0:01:57]}  Kc7 {[%clk 0:00:29]} 20. Ne4 {[%clk 0:01:56]}  c4 {[%clk 0:00:28]} 21. Nd4 {[%clk 0:01:47]}  Nxd4+ {[%clk 0:00:26]} 22. Bxd4 {[%clk 0:01:48]}  Nb6 {[%clk 0:00:24]} 23. g3 {[%clk 0:01:42]}  Rd5 {[%clk 0:00:24]} 24. Ra5 {[%clk 0:01:28]}  Rhd8 {[%clk 0:00:23]} 25. Rf1 {[%clk 0:01:24]}  Kc6 {[%clk 0:00:22]} 26. f5 {[%clk 0:01:22]}  R8d7 {[%clk 0:00:15]} 27. fxe6 {[%clk 0:01:11]}  fxe6 {[%clk 0:00:16]} 28. Rf7 {[%clk 0:01:10]}  Bd8 {[%clk 0:00:16]} 29. Rxd7 {[%clk 0:01:04]}  Rxd7 {[%clk 0:00:17]} 30. Nc5 {[%clk 0:01:05]}  Re7 {[%clk 0:00:15]} 31. Nb7 {[%clk 0:01:03]}  Bc7 {[%clk 0:00:13]} 32. Nd6 {[%clk 0:01:00]}  Bxd6 {[%clk 0:00:10]} 33. exd6 {[%clk 0:01:01]}  Rd7 {[%clk 0:00:09]} 34. Be5 {[%clk 0:00:59]}  Nc8 {[%clk 0:00:09]} 35. Ra1 {[%clk 0:00:51]}  Nxd6 {[%clk 0:00:09]} 36. Rf1 {[%clk 0:00:50]}  Rf7 {[%clk 0:00:06]} 37. Rd1 {[%clk 0:00:48]}  Nf5 {[%clk 0:00:06]} 38. Rd8 {[%clk 0:00:46]}  Ne3+ {[%clk 0:00:03]} 39. Kd2 {[%clk 0:00:46]}  Nd5 {[%clk 0:00:03]} 40. Bd4 {[%clk 0:00:41]}  Rd7 {[%clk 0:00:02]} 41. Rxd7 {[%clk 0:00:39]}  Kxd7 {[%clk 0:00:03]} 42. Bxa7 {[%clk 0:00:40]}  Nc7 {[%clk 0:00:04]} 43. Bd4 {[%clk 0:00:39]}  Nxa6 {[%clk 0:00:05]} 44. Bxg7 {[%clk 0:00:39]}  h5 {[%clk 0:00:05]} 45. h3 {[%clk 0:00:30]}  Nc5 {[%clk 0:00:06]} 46. g4 {[%clk 0:00:27]}  hxg4 {[%clk 0:00:06]} 47. hxg4 {[%clk 0:00:27]}  Na4 {[%clk 0:00:07]} 48. Kc2 {[%clk 0:00:27]}  Ke7 {[%clk 0:00:07]} 49. g5 {[%clk 0:00:26]}  Kf7 {[%clk 0:00:07]} 50. Bf6 {[%clk 0:00:25]}  Kg6 {[%clk 0:00:08]} 51. Be7 {[%clk 0:00:24]}  e5 {[%clk 0:00:07]} 52. b3 {[%clk 0:00:23]}  Nb6 {[%clk 0:00:06]} 53. bxc4 {[%clk 0:00:21]}  bxc4 {[%clk 0:00:05]} 54. Kd2 {[%clk 0:00:22]}  Nd5 {[%clk 0:00:05]} 55. Bd8 {[%clk 0:00:22]}  Kf5 {[%clk 0:00:04]} 56. Kc2 {[%clk 0:00:15]}  Nf4 {[%clk 0:00:02]} 57. Kd2 {[%clk 0:00:14]}  Ne6 {[%clk 0:00:03]} 58. Be7 {[%clk 0:00:10]}  Nxg5 {[%clk 0:00:03]} 59. Ke3 {[%clk 0:00:11]}  Nf7 {[%clk 0:00:02]} 60. Bb4 {[%clk 0:00:10]}  Nd8 {[%clk 0:00:02]} 61. Bd6 {[%clk 0:00:09]}  Ne6 {[%clk 0:00:03]} 62. Kf3 {[%clk 0:00:08]}  Nf4 {[%clk 0:00:03]} 63. Bb8 {[%clk 0:00:07]}  Nd5 {[%clk 0:00:04]} 64. Bd6 {[%clk 0:00:03]}  Nxc3 {[%clk 0:00:04]} 65. Ke3 {[%clk 0:00:04]}  Nd5+ {[%clk 0:00:04]} 66. Kd2 {[%clk 0:00:04]}  Ke6 {[%clk 0:00:03]} 67. Bc5 {[%clk 0:00:04]}  Kf5 {[%clk 0:00:03]} 68. Ke2 {[%clk 0:00:04]}  e4 {[%clk 0:00:03]} 69. Bd4 {[%clk 0:00:04]}  Kf4 {[%clk 0:00:04]} 70. Kf2 {[%clk 0:00:04]}  e3+ {[%clk 0:00:03]} 71. Ke2 {[%clk 0:00:04]}  Ke4 {[%clk 0:00:04]} 72. Bc5 {[%clk 0:00:04]}  Nf4+ {[%clk 0:00:04]} 73. Kd1 {[%clk 0:00:04]}  Kd3 {[%clk 0:00:04]} 74. Bb4 {[%clk 0:00:03]}  e2+ {[%clk 0:00:04]} 75. Kc1 {[%clk 0:00:03]}  c3 {[%clk 0:00:04]} 76. Bxc3 {[%clk 0:00:02]}  Kxc3 {[%clk 0:00:05]} 77. Kb1 {[%clk 0:00:03]}  e1=Q+ {[%clk 0:00:05]} 0-1


[Site "https://www.chess.com"]

[Event "Titled Tuesday Blitz February 15 Late 2022"]
[White "Kopczynski, Michal"]
[Black "Dovbnia, Nikita"]
[WhiteFideId "1124200"]
[BlackFideId "54104599"]
[WhiteElo "2235"]
[BlackElo "2111"]
[Result "0-1"]
[Round "04"]
[TimeControl "180+1"]
[Date "2022.02.16"]
[WhiteClock "0:00:18"]
[BlackClock "0:00:16"]

1. e4 {[%clk 0:03:00]}  c5 {[%clk 0:02:59]} 2. d4 {[%clk 0:03:00]}  cxd4 {[%clk 0:02:59]} 3. c3 {[%clk 0:03:01]}  dxc3 {[%clk 0:02:59]} 4. Nxc3 {[%clk 0:03:02]}  Nc6 {[%clk 0:03:00]} 5. f4 {[%clk 0:03:02]}  d6 {[%clk 0:02:59]} 6. Nf3 {[%clk 0:03:03]}  g6 {[%clk 0:02:59]} 7. Bc4 {[%clk 0:03:03]}  Bg7 {[%clk 0:02:56]} 8. O-O {[%clk 0:03:03]}  e6 {[%clk 0:02:52]} 9. Kh1 {[%clk 0:03:03]}  Nge7 {[%clk 0:02:52]} 10. Qe1 {[%clk 0:03:04]}  O-O {[%clk 0:02:50]} 11. Be3 {[%clk 0:03:04]}  a6 {[%clk 0:02:50]} 12. Rd1 {[%clk 0:03:03]}  Qc7 {[%clk 0:02:48]} 13. Bb3 {[%clk 0:03:02]}  Bd7 {[%clk 0:02:39]} 14. Qh4 {[%clk 0:03:01]}  Rad8 {[%clk 0:02:26]} 15. Ng5 {[%clk 0:03:01]}  h6 {[%clk 0:02:21]} 16. Nf3 {[%clk 0:03:01]}  Kh7 {[%clk 0:02:16]} 17. Bc2 {[%clk 0:02:02]}  Bc8 {[%clk 0:02:03]} 18. Bb1 {[%clk 0:01:58]}  d5 {[%clk 0:01:55]} 19. f5 {[%clk 0:01:53]}  exf5 {[%clk 0:01:34]} 20. exd5 {[%clk 0:01:47]}  Nb4 {[%clk 0:01:23]} 21. Bf4 {[%clk 0:01:23]}  Qc5 {[%clk 0:01:07]} 22. d6 {[%clk 0:01:19]}  Ned5 {[%clk 0:01:05]} 23. Nxd5 {[%clk 0:01:11]}  Nxd5 {[%clk 0:01:04]} 24. Bg3 {[%clk 0:00:56]}  Be6 {[%clk 0:00:56]} 25. Ng5+ {[%clk 0:00:50]}  Kg8 {[%clk 0:00:53]} 26. Nxe6 {[%clk 0:00:51]}  fxe6 {[%clk 0:00:53]} 27. Rc1 {[%clk 0:00:46]}  Qe3 {[%clk 0:00:52]} 28. Rfe1 {[%clk 0:00:42]}  Qd4 {[%clk 0:00:48]} 29. Rxe6 {[%clk 0:00:38]}  Qxb2 {[%clk 0:00:43]} 30. Rce1 {[%clk 0:00:33]}  f4 {[%clk 0:00:43]} 31. Bf2 {[%clk 0:00:32]}  g5 {[%clk 0:00:42]} 32. Qh5 {[%clk 0:00:26]}  Qxf2 {[%clk 0:00:42]} 33. Qg6 {[%clk 0:00:25]}  Nf6 {[%clk 0:00:22]} 34. Re7 {[%clk 0:00:21]}  Qxe1+ {[%clk 0:00:16]} 35. Rxe1 {[%clk 0:00:22]}  Rxd6 {[%clk 0:00:16]} 36. h4 {[%clk 0:00:22]}  Rfd8 {[%clk 0:00:15]} 37. hxg5 {[%clk 0:00:22]}  Rd1 {[%clk 0:00:16]} 38. Rxd1 {[%clk 0:00:21]}  Rxd1+ {[%clk 0:00:16]} 39. Kh2 {[%clk 0:00:21]}  Ng4+ {[%clk 0:00:16]} 40. Kh3 {[%clk 0:00:22]}  Nf2+ {[%clk 0:00:16]} 41. Kh4 {[%clk 0:00:18]}  Rh1# {[%clk 0:00:16]} 0-1


[Site "https://www.chess.com"]

[Event "Titled Tuesday Blitz February 15 Late 2022"]
[White "Kosteniuk, Alexandra"]
[Black "Horak, Martin"]
[WhiteFideId "4128125"]
[BlackFideId "367095"]
[WhiteElo "2469"]
[BlackElo "1997"]
[Result "1-0"]
[Round "04"]
[TimeControl "180+1"]
[Date "2022.02.16"]
[WhiteClock "0:00:16"]
[BlackClock "0:00:02"]

1. Nf3 {[%clk 0:03:00]}  Nf6 {[%clk 0:02:57]} 2. g3 {[%clk 0:03:00]}  d5 {[%clk 0:02:46]} 3. Bg2 {[%clk 0:03:00]}  Nc6 {[%clk 0:02:47]} 4. d4 {[%clk 0:02:59]}  Bf5 {[%clk 0:02:42]} 5. O-O {[%clk 0:02:57]}  e6 {[%clk 0:02:33]} 6. a3 {[%clk 0:02:54]}  h6 {[%clk 0:02:29]} 7. c4 {[%clk 0:02:52]}  Be7 {[%clk 0:02:25]} 8. c5 {[%clk 0:02:48]}  O-O {[%clk 0:01:59]} 9. Nc3 {[%clk 0:02:48]}  Ne4 {[%clk 0:01:58]} 10. Be3 {[%clk 0:02:40]}  Bf6 {[%clk 0:01:54]} 11. Qc1 {[%clk 0:02:38]}  Na5 {[%clk 0:01:43]} 12. Qd1 {[%clk 0:02:26]}  Nc4 {[%clk 0:01:34]} 13. Bc1 {[%clk 0:02:26]}  b6 {[%clk 0:01:31]} 14. c6 {[%clk 0:02:10]}  Qe8 {[%clk 0:01:10]} 15. Nxe4 {[%clk 0:02:02]}  Bxe4 {[%clk 0:01:06]} 16. b3 {[%clk 0:01:38]}  Nd6 {[%clk 0:01:00]} 17. Ne5 {[%clk 0:01:35]}  Bxg2 {[%clk 0:00:40]} 18. Kxg2 {[%clk 0:01:36]}  Bxe5 {[%clk 0:00:26]} 19. dxe5 {[%clk 0:01:37]}  Nf5 {[%clk 0:00:26]} 20. Qc2 {[%clk 0:01:17]}  Nd4 {[%clk 0:00:25]} 21. Qd3 {[%clk 0:01:18]}  Nxc6 {[%clk 0:00:25]} 22. f4 {[%clk 0:01:18]}  Ne7 {[%clk 0:00:22]} 23. Bb2 {[%clk 0:01:15]}  c5 {[%clk 0:00:22]} 24. g4 {[%clk 0:01:13]}  Qc6 {[%clk 0:00:21]} 25. Rf3 {[%clk 0:01:07]}  c4 {[%clk 0:00:18]} 26. bxc4 {[%clk 0:01:07]}  dxc4 {[%clk 0:00:17]} 27. Qd6 {[%clk 0:01:05]}  Qxd6 {[%clk 0:00:16]} 28. exd6 {[%clk 0:01:06]}  Nd5 {[%clk 0:00:14]} 29. e4 {[%clk 0:01:05]}  Nf6 {[%clk 0:00:14]} 30. e5 {[%clk 0:01:04]}  Nd5 {[%clk 0:00:14]} 31. Rd1 {[%clk 0:01:02]}  Rac8 {[%clk 0:00:12]} 32. Bc3 {[%clk 0:01:01]}  a5 {[%clk 0:00:09]} 33. a4 {[%clk 0:01:00]}  Rc5 {[%clk 0:00:08]} 34. Rd4 {[%clk 0:00:58]}  Rd8 {[%clk 0:00:07]} 35. h4 {[%clk 0:00:54]}  g6 {[%clk 0:00:06]} 36. Kf2 {[%clk 0:00:54]}  Kf8 {[%clk 0:00:06]} 37. Kg3 {[%clk 0:00:53]}  Ke8 {[%clk 0:00:06]} 38. h5 {[%clk 0:00:51]}  gxh5 {[%clk 0:00:05]} 39. gxh5 {[%clk 0:00:49]}  Kd7 {[%clk 0:00:06]} 40. Kh4 {[%clk 0:00:46]}  Rg8 {[%clk 0:00:06]} 41. Rd1 {[%clk 0:00:30]}  f5 {[%clk 0:00:06]} 42. exf6 {[%clk 0:00:22]}  Kxd6 {[%clk 0:00:06]} 43. Be5+ {[%clk 0:00:21]}  Kc6 {[%clk 0:00:06]} 44. f5 {[%clk 0:00:19]}  exf5 {[%clk 0:00:04]} 45. f7 {[%clk 0:00:18]}  Rf8 {[%clk 0:00:04]} 46. Rxf5 {[%clk 0:00:18]}  Ne3 {[%clk 0:00:05]} 47. Rf6+ {[%clk 0:00:16]}  Kb7 {[%clk 0:00:04]} 48. Bd6 {[%clk 0:00:16]}  Rxf7 {[%clk 0:00:02]} 49. Rxf7+ {[%clk 0:00:16]} 1-0


[Site "https://www.chess.com"]

[Event "Titled Tuesday Blitz February 15 Late 2022"]
[White "Kostiukov, Alexandr"]
[Black "Jimenez Fernandez, Rebeca"]
[WhiteFideId "14108100"]
[BlackFideId "32070934"]
[WhiteElo "2202"]
[BlackElo "1853"]
[Result "1-0"]
[Round "04"]
[TimeControl "180+1"]
[Date "2022.02.16"]
[WhiteClock "0:00:58"]
[BlackClock "0:00:13"]

1. g3 {[%clk 0:03:00]}  g6 {[%clk 0:02:35]} 2. Bg2 {[%clk 0:02:58]}  Bg7 {[%clk 0:02:35]} 3. c4 {[%clk 0:02:59]}  Nf6 {[%clk 0:02:35]} 4. Nf3 {[%clk 0:03:00]}  O-O {[%clk 0:02:36]} 5. O-O {[%clk 0:03:00]}  d6 {[%clk 0:02:37]} 6. d4 {[%clk 0:03:01]}  Nbd7 {[%clk 0:02:37]} 7. Nc3 {[%clk 0:03:01]}  c5 {[%clk 0:02:37]} 8. d5 {[%clk 0:02:52]}  a6 {[%clk 0:02:33]} 9. a4 {[%clk 0:02:51]}  Nb6 {[%clk 0:02:19]} 10. Qd3 {[%clk 0:02:46]}  Bd7 {[%clk 0:01:53]} 11. e4 {[%clk 0:02:41]}  Rb8 {[%clk 0:01:50]} 12. e5 {[%clk 0:02:24]}  Bf5 {[%clk 0:01:43]} 13. Qe2 {[%clk 0:02:19]}  Ng4 {[%clk 0:01:36]} 14. e6 {[%clk 0:01:38]}  fxe6 {[%clk 0:01:23]} 15. h3 {[%clk 0:01:37]}  Ne5 {[%clk 0:01:20]} 16. Nxe5 {[%clk 0:01:37]}  Bxe5 {[%clk 0:01:19]} 17. g4 {[%clk 0:01:35]}  exd5 {[%clk 0:01:04]} 18. gxf5 {[%clk 0:01:31]}  Rxf5 {[%clk 0:00:57]} 19. Nxd5 {[%clk 0:01:27]}  e6 {[%clk 0:00:50]} 20. Ne3 {[%clk 0:01:16]}  Rf7 {[%clk 0:00:20]} 21. Ng4 {[%clk 0:01:15]}  Bd4 {[%clk 0:00:17]} 22. Nh6+ {[%clk 0:01:14]}  Kg7 {[%clk 0:00:17]} 23. Nxf7 {[%clk 0:01:14]}  Kxf7 {[%clk 0:00:18]} 24. Be3 {[%clk 0:01:14]}  Be5 {[%clk 0:00:17]} 25. a5 {[%clk 0:01:11]}  Nd7 {[%clk 0:00:16]} 26. f4 {[%clk 0:01:06]}  Bf6 {[%clk 0:00:15]} 27. Rad1 {[%clk 0:01:03]}  Bh4 {[%clk 0:00:15]} 28. Rxd6 {[%clk 0:01:01]}  Qe7 {[%clk 0:00:15]} 29. Rfd1 {[%clk 0:00:59]}  Re8 {[%clk 0:00:13]} 30. Rxd7 {[%clk 0:00:58]} 1-0


[Site "https://www.chess.com"]

[Event "Titled Tuesday Blitz February 15 Late 2022"]
[White "Kozak, Adam"]
[Black "Goltseva, Ekaterina"]
[WhiteFideId "753246"]
[BlackFideId "24173770"]
[WhiteElo "2792"]
[BlackElo "2572"]
[Result "0-1"]
[Round "04"]
[TimeControl "180+1"]
[Date "2022.02.16"]
[WhiteClock "0:00:01"]
[BlackClock "0:01:35"]

1. e4 {[%clk 0:02:48]}  e5 {[%clk 0:02:55]} 2. Nf3 {[%clk 0:02:29]}  Nc6 {[%clk 0:02:55]} 3. Nc3 {[%clk 0:02:26]}  Nf6 {[%clk 0:02:53]} 4. h3 {[%clk 0:02:26]}  d5 {[%clk 0:02:49]} 5. Bb5 {[%clk 0:01:24]}  dxe4 {[%clk 0:02:33]} 6. Nxe5 {[%clk 0:01:01]}  Qd6 {[%clk 0:02:33]} 7. Nc4 {[%clk 0:00:57]}  Qe6 {[%clk 0:02:32]} 8. Ne3 {[%clk 0:00:50]}  Bd7 {[%clk 0:02:29]} 9. O-O {[%clk 0:00:20]}  O-O-O {[%clk 0:02:24]} 10. d4 {[%clk 0:00:18]}  Nxd4 {[%clk 0:02:19]} 11. Bc4 {[%clk 0:00:15]}  Qe5 {[%clk 0:02:07]} 12. Ned5 {[%clk 0:00:06]}  Nxd5 {[%clk 0:01:55]} 13. Nxd5 {[%clk 0:00:06]}  Ne6 {[%clk 0:01:49]} 14. Be3 {[%clk 0:00:06]}  Bc6 {[%clk 0:01:44]} 15. f4 {[%clk 0:00:01]}  exf3 {[%clk 0:01:42]} 16. Qxf3 {[%clk 0:00:01]}  Bxd5 {[%clk 0:01:42]} 17. Bxd5 {[%clk 0:00:01]}  Rxd5 {[%clk 0:01:39]} 18. Qf2 {[%clk 0:00:01]}  Bd6 {[%clk 0:01:35]} 0-1


[Site "https://www.chess.com"]

[Event "Titled Tuesday Blitz February 15 Late 2022"]
[White "Kozin, Yuri"]
[Black "Riehle, Marco"]
[WhiteFideId "4129920"]
[BlackFideId "12904392"]
[WhiteElo "2525"]
[BlackElo "2462"]
[Result "1/2-1/2"]
[Round "04"]
[TimeControl "180+1"]
[Date "2022.02.16"]
[WhiteClock "0:00:21"]
[BlackClock "0:00:49"]

1. e4 {[%clk 0:03:00]}  e5 {[%clk 0:02:59]} 2. Nf3 {[%clk 0:03:01]}  Nf6 {[%clk 0:02:59]} 3. Nxe5 {[%clk 0:03:01]}  Nxe4 {[%clk 0:03:00]} 4. Nf3 {[%clk 0:02:55]}  d5 {[%clk 0:03:00]} 5. Nc3 {[%clk 0:02:54]}  Bd6 {[%clk 0:02:58]} 6. d3 {[%clk 0:02:51]}  Nxc3 {[%clk 0:02:57]} 7. bxc3 {[%clk 0:02:52]}  O-O {[%clk 0:02:57]} 8. Be2 {[%clk 0:02:52]}  c6 {[%clk 0:02:54]} 9. O-O {[%clk 0:02:52]}  Re8 {[%clk 0:02:51]} 10. Bg5 {[%clk 0:02:42]}  Qc7 {[%clk 0:02:50]} 11. Bh4 {[%clk 0:02:42]}  Bg4 {[%clk 0:02:49]} 12. Bg3 {[%clk 0:02:41]}  Nd7 {[%clk 0:02:48]} 13. Nd4 {[%clk 0:02:41]}  Bxg3 {[%clk 0:02:40]} 14. hxg3 {[%clk 0:02:39]}  Bxe2 {[%clk 0:02:39]} 15. Nxe2 {[%clk 0:02:40]}  Re7 {[%clk 0:02:39]} 16. Nd4 {[%clk 0:02:35]}  Rae8 {[%clk 0:02:39]} 17. Qg4 {[%clk 0:02:30]}  Nf6 {[%clk 0:02:37]} 18. Qh4 {[%clk 0:02:20]}  Re5 {[%clk 0:02:34]} 19. Qf4 {[%clk 0:02:18]}  Qd7 {[%clk 0:02:26]} 20. Nf3 {[%clk 0:02:06]}  Re2 {[%clk 0:02:24]} 21. Rfe1 {[%clk 0:01:53]}  Rxc2 {[%clk 0:02:18]} 22. Rxe8+ {[%clk 0:01:52]}  Qxe8 {[%clk 0:02:19]} 23. Re1 {[%clk 0:01:51]}  Qd8 {[%clk 0:02:18]} 24. g4 {[%clk 0:01:32]}  h6 {[%clk 0:02:12]} 25. g5 {[%clk 0:01:19]}  hxg5 {[%clk 0:02:13]} 26. Qxg5 {[%clk 0:01:12]}  Rxc3 {[%clk 0:02:10]} 27. Nd4 {[%clk 0:01:12]}  Rxd3 {[%clk 0:01:35]} 28. Nf5 {[%clk 0:01:12]}  g6 {[%clk 0:01:34]} 29. Nh6+ {[%clk 0:00:34]}  Kg7 {[%clk 0:01:33]} 30. Nf5+ {[%clk 0:00:21]}  Kg8 {[%clk 0:01:32]} 31. Nh6+ {[%clk 0:00:21]}  Kg7 {[%clk 0:00:49]} 32. Nf5+ {[%clk 0:00:21]}  Kg8 {[%clk 0:00:49]} 1/2-1/2


[Site "https://www.chess.com"]

[Event "Titled Tuesday Blitz February 15 Late 2022"]
[White "Levine, David"]
[Black "Batsiashvili, Nino"]
[WhiteFideId "2011611"]
[BlackFideId "13602993"]
[WhiteElo "2160"]
[BlackElo "2230"]
[Result "0-1"]
[Round "04"]
[TimeControl "180+1"]
[Date "2022.02.16"]
[WhiteClock "0:00:01"]
[BlackClock "0:00:40"]

1. d4 {[%clk 0:03:00]}  d5 {[%clk 0:02:59]} 2. c4 {[%clk 0:03:00]}  e6 {[%clk 0:02:59]} 3. g3 {[%clk 0:03:00]}  Nf6 {[%clk 0:02:59]} 4. Bg2 {[%clk 0:03:00]}  Be7 {[%clk 0:02:59]} 5. Nf3 {[%clk 0:03:00]}  O-O {[%clk 0:03:00]} 6. O-O {[%clk 0:03:01]}  dxc4 {[%clk 0:02:54]} 7. Qc2 {[%clk 0:03:01]}  b5 {[%clk 0:02:54]} 8. a4 {[%clk 0:02:53]}  Bb7 {[%clk 0:02:53]} 9. axb5 {[%clk 0:02:51]}  a6 {[%clk 0:02:52]} 10. bxa6 {[%clk 0:02:39]}  Nxa6 {[%clk 0:02:49]} 11. Qxc4 {[%clk 0:02:31]}  Bd5 {[%clk 0:02:47]} 12. Qc3 {[%clk 0:02:25]}  c5 {[%clk 0:02:39]} 13. Bg5 {[%clk 0:02:19]}  h6 {[%clk 0:02:19]} 14. Bf4 {[%clk 0:02:13]}  c4 {[%clk 0:02:01]} 15. Nbd2 {[%clk 0:01:50]}  Nb4 {[%clk 0:01:41]} 16. Rxa8 {[%clk 0:01:43]}  Qxa8 {[%clk 0:01:42]} 17. Nxc4 {[%clk 0:01:36]}  Ne4 {[%clk 0:01:31]} 18. Qc1 {[%clk 0:01:35]}  Na2 {[%clk 0:01:30]} 19. Qe3 {[%clk 0:01:30]}  Bxc4 {[%clk 0:01:28]} 20. Nd2 {[%clk 0:01:28]}  Bd5 {[%clk 0:01:21]} 21. Bxe4 {[%clk 0:01:25]}  g5 {[%clk 0:01:20]} 22. Be5 {[%clk 0:01:13]}  f6 {[%clk 0:01:17]} 23. Bc7 {[%clk 0:00:55]}  Rc8 {[%clk 0:01:05]} 24. Bb6 {[%clk 0:00:37]}  Qc6 {[%clk 0:00:52]} 25. Bxd5 {[%clk 0:00:35]}  Qxd5 {[%clk 0:00:53]} 26. Ra1 {[%clk 0:00:23]}  Rb8 {[%clk 0:00:45]} 27. Bc5 {[%clk 0:00:08]}  Bxc5 {[%clk 0:00:44]} 28. dxc5 {[%clk 0:00:08]}  Rxb2 {[%clk 0:00:45]} 29. Nf3 {[%clk 0:00:07]}  Kg7 {[%clk 0:00:42]} 30. h3 {[%clk 0:00:07]}  Rc2 {[%clk 0:00:41]} 31. Kg2 {[%clk 0:00:06]}  Nc3 {[%clk 0:00:40]} 32. Ra7+ {[%clk 0:00:01]}  Kg6 {[%clk 0:00:40]} 0-1


[Site "https://www.chess.com"]

[Event "Titled Tuesday Blitz February 15 Late 2022"]
[White "Lugovskoy, Maxim"]
[Black "Tang, Andrew"]
[WhiteFideId "24126454"]
[BlackFideId "2059630"]
[WhiteElo "2444"]
[BlackElo "2584"]
[Result "1-0"]
[Round "04"]
[TimeControl "180+1"]
[Date "2022.02.15"]
[WhiteClock "0:00:39"]
[BlackClock "0:00:01"]

1. e4 {[%clk 0:02:59]}  e5 {[%clk 0:02:55]} 2. Nf3 {[%clk 0:02:59]}  Nc6 {[%clk 0:02:55]} 3. Nc3 {[%clk 0:02:59]}  Nf6 {[%clk 0:02:54]} 4. d4 {[%clk 0:02:59]}  exd4 {[%clk 0:02:55]} 5. Nxd4 {[%clk 0:02:59]}  Bb4 {[%clk 0:02:55]} 6. Nxc6 {[%clk 0:03:00]}  bxc6 {[%clk 0:02:56]} 7. Bd3 {[%clk 0:03:00]}  O-O {[%clk 0:02:56]} 8. O-O {[%clk 0:02:59]}  d5 {[%clk 0:02:57]} 9. exd5 {[%clk 0:02:59]}  cxd5 {[%clk 0:02:58]} 10. h3 {[%clk 0:02:59]}  c6 {[%clk 0:02:57]} 11. Qf3 {[%clk 0:02:59]}  Rb8 {[%clk 0:02:49]} 12. Bf4 {[%clk 0:02:55]}  Bd6 {[%clk 0:02:49]} 13. b3 {[%clk 0:02:55]}  Rb7 {[%clk 0:02:19]} 14. Rfe1 {[%clk 0:02:52]}  Re7 {[%clk 0:02:19]} 15. Rxe7 {[%clk 0:02:46]}  Qxe7 {[%clk 0:02:20]} 16. Bxd6 {[%clk 0:02:43]}  Qxd6 {[%clk 0:02:20]} 17. Re1 {[%clk 0:02:39]}  Bd7 {[%clk 0:01:41]} 18. Qg3 {[%clk 0:02:28]}  Qb4 {[%clk 0:01:27]} 19. Re5 {[%clk 0:02:20]}  g6 {[%clk 0:01:06]} 20. Bf1 {[%clk 0:02:15]}  Be6 {[%clk 0:00:45]} 21. Ne2 {[%clk 0:02:07]}  Qa3 {[%clk 0:00:16]} 22. Qf4 {[%clk 0:02:00]}  Nd7 {[%clk 0:00:15]} 23. Re3 {[%clk 0:01:56]}  c5 {[%clk 0:00:15]} 24. Qd6 {[%clk 0:01:30]}  Nb6 {[%clk 0:00:10]} 25. h4 {[%clk 0:01:17]}  Qxa2 {[%clk 0:00:09]} 26. Qxc5 {[%clk 0:01:14]}  Rc8 {[%clk 0:00:08]} 27. Qd4 {[%clk 0:01:12]}  Qxc2 {[%clk 0:00:08]} 28. h5 {[%clk 0:01:08]}  Qc5 {[%clk 0:00:08]} 29. Qh4 {[%clk 0:01:02]}  Nd7 {[%clk 0:00:05]} 30. Nd4 {[%clk 0:00:58]}  Re8 {[%clk 0:00:05]} 31. hxg6 {[%clk 0:00:46]}  hxg6 {[%clk 0:00:06]} 32. Nxe6 {[%clk 0:00:41]}  Rxe6 {[%clk 0:00:03]} 33. Rh3 {[%clk 0:00:41]}  Kf8 {[%clk 0:00:01]} 34. Qd8+ {[%clk 0:00:40]}  Kg7 {[%clk 0:00:01]} 35. Qh8# {[%clk 0:00:39]} 1-0


[Site "https://www.chess.com"]

[Event "Titled Tuesday Blitz February 15 Late 2022"]
[White "Martinez Ramirez, Lennis"]
[Black "Lopez Gracia, Fernando"]
[WhiteFideId "3509079"]
[BlackFideId "2207184"]
[WhiteElo "2374"]
[BlackElo "2431"]
[Result "1-0"]
[Round "04"]
[TimeControl "180+1"]
[Date "2022.02.16"]
[WhiteClock "0:00:46"]
[BlackClock "0:00:46"]

1. d4 {[%clk 0:02:55]}  Nf6 {[%clk 0:02:59]} 2. Nc3 {[%clk 0:02:53]}  d5 {[%clk 0:02:59]} 3. Bg5 {[%clk 0:02:54]}  e6 {[%clk 0:02:52]} 4. e4 {[%clk 0:02:53]}  dxe4 {[%clk 0:02:53]} 5. Nxe4 {[%clk 0:02:54]}  Be7 {[%clk 0:02:54]} 6. Bxf6 {[%clk 0:02:54]}  Bxf6 {[%clk 0:02:55]} 7. Nf3 {[%clk 0:02:55]}  O-O {[%clk 0:02:53]} 8. Bd3 {[%clk 0:02:37]}  Re8 {[%clk 0:02:53]} 9. Qe2 {[%clk 0:02:35]}  Nc6 {[%clk 0:02:50]} 10. O-O-O {[%clk 0:02:32]}  h6 {[%clk 0:02:43]} 11. Nxf6+ {[%clk 0:02:09]}  Qxf6 {[%clk 0:02:43]} 12. Qe4 {[%clk 0:02:08]}  g6 {[%clk 0:02:43]} 13. Ne5 {[%clk 0:02:06]}  Nxe5 {[%clk 0:02:22]} 14. dxe5 {[%clk 0:02:07]}  Qe7 {[%clk 0:02:21]} 15. h4 {[%clk 0:02:06]}  Bd7 {[%clk 0:02:14]} 16. h5 {[%clk 0:01:58]}  Bc6 {[%clk 0:02:11]} 17. Qe3 {[%clk 0:01:53]}  g5 {[%clk 0:02:10]} 18. f4 {[%clk 0:01:52]}  gxf4 {[%clk 0:02:06]} 19. Qxf4 {[%clk 0:01:36]}  Qg5 {[%clk 0:02:05]} 20. Qxg5+ {[%clk 0:01:36]}  hxg5 {[%clk 0:02:05]} 21. Rh3 {[%clk 0:01:36]}  Bxg2 {[%clk 0:01:21]} 22. Rg3 {[%clk 0:01:35]}  Bd5 {[%clk 0:01:20]} 23. c4 {[%clk 0:01:26]}  Bc6 {[%clk 0:01:19]} 24. h6 {[%clk 0:01:23]}  Kh8 {[%clk 0:01:16]} 25. Rxg5 {[%clk 0:01:06]}  Rg8 {[%clk 0:01:15]} 26. Rdg1 {[%clk 0:01:05]}  Rxg5 {[%clk 0:01:05]} 27. Rxg5 {[%clk 0:01:06]}  Rg8 {[%clk 0:01:05]} 28. Rxg8+ {[%clk 0:01:06]}  Kxg8 {[%clk 0:01:06]} 29. Kd2 {[%clk 0:01:05]}  Bf3 {[%clk 0:01:06]} 30. Ke3 {[%clk 0:01:04]}  Bh5 {[%clk 0:01:06]} 31. Kf4 {[%clk 0:01:04]}  Bg6 {[%clk 0:00:55]} 32. Bxg6 {[%clk 0:00:56]}  fxg6 {[%clk 0:00:56]} 33. Kg5 {[%clk 0:00:56]}  Kh7 {[%clk 0:00:56]} 34. c5 {[%clk 0:00:55]}  b5 {[%clk 0:00:52]} 35. c6 {[%clk 0:00:54]}  b4 {[%clk 0:00:47]} 36. a4 {[%clk 0:00:51]}  bxa3 {[%clk 0:00:43]} 37. bxa3 {[%clk 0:00:51]}  a6 {[%clk 0:00:44]} 38. a4 {[%clk 0:00:49]}  a5 {[%clk 0:00:43]} 39. Kf6 {[%clk 0:00:49]}  Kxh6 {[%clk 0:00:43]} 40. Kxe6 {[%clk 0:00:49]}  g5 {[%clk 0:00:44]} 41. Kd7 {[%clk 0:00:46]}  g4 {[%clk 0:00:44]} 42. e6 {[%clk 0:00:46]}  g3 {[%clk 0:00:44]} 43. e7 {[%clk 0:00:47]}  g2 {[%clk 0:00:45]} 44. e8=Q {[%clk 0:00:46]}  g1=Q {[%clk 0:00:46]} 45. Qh8+ {[%clk 0:00:46]}  Kg6 {[%clk 0:00:46]} 46. Qg8+ {[%clk 0:00:46]} 1-0


[Site "https://www.chess.com"]